fUST/lending_fUST_20260318
["ID","MTS","AMOUNT","RATE_DAILY","PERIOD"]
[408516439,1773803443938,-255.52468812,5e-05,2]
[408516440,1773803443948,-167.829604,5e-05,2]
[408516441,1773803443957,-18777.10217557,5e-05,2]
[408516442,1773803443966,-587.0,5.081e-05,2]
[408516443,1773803443975,-1331.0,5.081e-05,2]
[408516444,1773803443985,-1000.0,5.1e-05,2]
[408516445,1773803443994,-1000.0,5.1e-05,2]
[408516446,1773803444004,-1000.0,5.1e-05,2]
[408516447,1773803444014,-1000.0,5.1e-05,2]
[408516448,1773803444023,-983.86732993,5.1e-05,2]
[408516449,1773803444032,-180.03322991,5.1e-05,2]
[408516450,1773803444042,-151.0,5.1e-05,2]
[408516451,1773803444051,-151.0,5.1e-05,2]
[408516452,1773803444060,-151.0,5.1e-05,2]
[408516453,1773803444069,-151.0,5.1e-05,2]
[408516454,1773803444079,-151.0,5.1e-05,2]
[408516455,1773803444089,-151.0,5.1e-05,2]
[408516456,1773803444099,-151.0,5.1e-05,2]
[408516457,1773803444108,-151.0,5.1e-05,2]
[408516458,1773803444117,-151.0,5.1e-05,2]
[408516459,1773803444126,-151.0,5.1e-05,2]
[408516460,1773803444136,-152.15766038,5.1e-05,2]
[408516461,1773803444145,-1500.0,5.268e-05,2]
[408516462,1773803444154,-723.11659729,5.268e-05,2]
[408516463,1773803444163,-864.0,5.306e-05,2]
[408516464,1773803444172,-454.8646277,5.34e-05,2]
[408516465,1773803444181,-647.898,5.412e-05,2]
[408516466,1773803444190,-2238.202,5.412e-05,2]
[408516467,1773803444200,-1416.036,5.412e-05,2]
[408516468,1773803444209,-186.667,5.412e-05,2]
[408516469,1773803444219,-438.0,5.412e-05,2]
[408516470,1773803444229,-3058.8055111,5.675e-05,2]
[408516471,1773803444238,-150.112,5.719e-05,2]
[408516472,1773803444247,-150.11,5.719e-05,2]
[408516473,1773803444257,-150.02,5.719e-05,2]
[408516474,1773803444267,-500.0,5.735e-05,2]
[408516475,1773803444277,-2000.0,5.816e-05,2]
[408516476,1773803444291,-1000.0,5.836e-05,2]
[408516477,1773803444300,-682.5117635,5.839e-05,2]
[408516478,1773803444310,-151.0,6.005e-05,2]
[408516479,1773803444319,-15838.12426767,6.268e-05,2]
[408516480,1773803444329,-2500.0,6.364e-05,2]
[408516481,1773803444338,-1000.0,6.42e-05,2]
[408516482,1773803444347,-244.0,6.42e-05,2]
[408516483,1773803444357,-277.82,6.574e-05,2]
[408516484,1773803444366,-500.0,6.574e-05,2]
[408516485,1773803444376,-500.0,6.574e-05,2]
[408516486,1773803444385,-500.0,6.574e-05,2]
[408516487,1773803444394,-500.0,6.574e-05,2]
[408516488,1773803444403,-500.0,6.574e-05,2]
[408516489,1773803444413,-500.0,6.574e-05,2]
[408516490,1773803444422,-500.0,6.574e-05,2]
[408516491,1773803444431,-500.0,6.574e-05,2]
[408516492,1773803444441,-500.0,6.574e-05,2]
[408516493,1773803444450,-500.0,6.574e-05,2]
[408516494,1773803444460,-500.0,6.574e-05,2]
[408516495,1773803444469,-500.0,6.574e-05,2]
[408516496,1773803444479,-500.0,6.574e-05,2]
[408516497,1773803444488,-500.0,6.574e-05,2]
[408516498,1773803444497,-500.0,6.574e-05,2]
[408516499,1773803444511,-500.0,6.574e-05,2]
[408516500,1773803444520,-500.0,6.574e-05,2]
[408516501,1773803444530,-500.0,6.574e-05,2]
[408516502,1773803444539,-500.0,6.574e-05,2]
[408516503,1773803444549,-500.0,6.574e-05,2]
[408516504,1773803444558,-500.0,6.574e-05,2]
[408516505,1773803444568,-500.0,6.574e-05,2]
[408516506,1773803444577,-500.0,6.574e-05,2]
[408516507,1773803444587,-500.0,6.574e-05,2]
[408516508,1773803444596,-500.0,6.574e-05,2]
[408516509,1773803444606,-500.0,6.574e-05,2]
[408516510,1773803444615,-551.43,6.574e-05,2]
[408516511,1773803444624,-500.0,6.574e-05,2]
[408516512,1773803444634,-500.0,6.574e-05,2]
[408516513,1773803444643,-571.25089787,6.849e-05,2]
[408516514,1773803444653,-536.88417473,6.849e-05,2]
[408516515,1773803444662,-300.0,6.849e-05,2]
[408516516,1773803444672,-2145.38916221,6.895e-05,2]
[408516517,1773803444681,-2003.89823871,6.912e-05,2]
[408516518,1773803444691,-980.27,7e-05,2]
[408516519,1773803444701,-151.00151001,7e-05,5]
[408516520,1773803444710,-1000.0,7.062e-05,2]
[408516521,1773803444719,-492.0,7.062e-05,2]
[408516522,1773803444730,-189.33284959,7.088e-05,2]
[408516523,1773803444739,-376.41675707,7.089e-05,2]
[408516524,1773803444748,-1968.29431769,7.194e-05,2]
[408516525,1773803444758,-537.6845,7.194e-05,2]
[408516526,1773803444767,-162.380719,7.194e-05,2]
[408516527,1773803444776,-168.3888056,7.194e-05,2]
[408516528,1773803444785,-174.61919141,7.194e-05,2]
[408516529,1773803444798,-181.08010149,7.194e-05,2]
[408516530,1773803444808,-187.78006525,7.194e-05,2]
[408516531,1773803444817,-194.72792766,7.194e-05,2]
[408516532,1773803444826,-201.93286099,7.194e-05,2]
[408516533,1773803444836,-2150.738,7.194e-05,2]
[408516534,1773803444845,-213.68946467,7.194e-05,2]
[408516535,1773803444855,-1001.69545392,7.194e-05,2]
[408516536,1773803444865,-600.0,7.397e-05,2]
[408516537,1773803444876,-1623.80894602,7.417e-05,2]
[408516538,1773803444885,-2261.12812709,7.423e-05,2]
[408516539,1773803444894,-506.42,7.5e-05,2]
[408516540,1773803444904,-154.78481468,7.574e-05,2]
[408516541,1773803444913,-339.0,7.574e-05,2]
[408516542,1773803444923,-339.0,7.574e-05,2]
[408516543,1773803444932,-164.86928159,7.574e-05,2]
[408516544,1773803444941,-166.0,7.574e-05,2]
[408516545,1773803444951,-690.0,7.574e-05,2]
[408516546,1773803444960,-166.0,7.574e-05,2]
[408516547,1773803444970,-518.98955173,7.574e-05,2]
[408516548,1773803444980,-230.36949314,7.574e-05,2]
[408516549,1773803444990,-395.62877863,7.584e-05,2]
[408516550,1773803445000,-151.0,7.613e-05,2]
[408516551,1773803445010,-557.5788265,7.742e-05,2]
[408516552,1773803445020,-2230.315306,7.742e-05,2]
[408516553,1773803445030,-1000.0,7.768e-05,2]
[408516554,1773803445040,-791.0,7.768e-05,2]
[408516555,1773803445268,-455.171304,7.801e-05,2]
[408516556,1773803445279,-454.883801,7.822e-05,2]
[408516557,1773803445289,-159.33695785,7.887e-05,2]
[408516558,1773803445298,-5752.7745204,7.9e-05,2]
[408516559,1773803445308,-900.0,7.945e-05,2]
[408516560,1773803445318,-218822.66438376,8e-05,2]
[408516575,1773803446552,-7366.51297338,8e-05,2]
[408516576,1773803446564,-337.2,8e-05,2]
[408516577,1773803446714,-9997.95176067,8e-05,2]
[408516578,1773803446725,-927.19930424,8e-05,2]
[408516586,1773804622623,167.7733107,1.999e-05,2]
[408516587,1773804624432,-300.0,3.799e-05,2]
[408516588,1773804624458,-300.0,3.8e-05,2]
[408516589,1773804624472,-940.20366487,3.8e-05,2]
[408516724,1773804638425,-68737.85922928,3.8e-05,2]
[408516811,1773804643589,-652.25,3.8e-05,2]
[408516812,1773804643599,-17965.24666536,3.8e-05,2]
[408516813,1773804643611,-2930.532276,3.8e-05,2]
[408516818,1773804646445,-13420.16313526,3.8e-05,2]
[408516819,1773804646502,-2089.59287962,3.8e-05,2]
[408516820,1773804994553,375.73,2.001e-05,2]
[408516836,1773805123143,1001.08,9.2e-05,120]
[408516852,1773805704894,-441.27868511,3.125e-05,2]
[408516853,1773805704916,-163.6338374,3.254e-05,2]
[408516854,1773805704941,-1200.0,3.599e-05,2]
[408516855,1773805704967,-195.08747749,3.599e-05,2]
[408516856,1773805706037,-69.91252251,3.599e-05,2]
[408516857,1773805706063,-1930.08747749,3.6e-05,2]
[408516858,1773805706827,-2000.0,3.6e-05,2]
[408516859,1773805707172,-2000.0,3.6e-05,2]
[408516860,1773805707615,-2000.0,3.6e-05,2]
[408516861,1773805708369,-2000.0,3.6e-05,2]
[408516862,1773805709453,-2000.0,3.6e-05,2]
[408516863,1773805709791,-2000.0,3.6e-05,2]
[408516864,1773805710097,-2000.0,3.6e-05,2]
[408516865,1773805710404,-2000.0,3.6e-05,2]
[408516866,1773805710737,-2000.0,3.6e-05,2]
[408516867,1773805712562,-2000.0,3.6e-05,2]
[408516868,1773805716260,-500.0,3.6e-05,2]
[408516869,1773805745233,-250.0,3.521e-05,2]
[408516870,1773805745260,-1750.0,3.528e-05,2]
[408516871,1773805746265,-2000.0,3.528e-05,2]
[408516872,1773805747252,-1250.0,3.528e-05,2]
[408516873,1773805747281,-750.0,3.564e-05,2]
[408516874,1773805748193,-2000.0,3.564e-05,2]
[408516875,1773805749067,-74.37014346,3.564e-05,2]
[408516876,1773805749094,-300.0,3.599e-05,2]
[408516877,1773805749123,-1625.62985654,3.6e-05,2]
[408516878,1773805749962,-2000.0,3.6e-05,2]
[408516879,1773805750899,-2000.0,3.6e-05,2]
[408516880,1773805751763,-2000.0,3.6e-05,2]
[408516881,1773805752589,-2000.0,3.6e-05,2]
[408516882,1773805753439,-2000.0,3.6e-05,2]
[408516883,1773805754271,-2000.0,3.6e-05,2]
[408516884,1773805755099,-2000.0,3.6e-05,2]
[408516885,1773805755975,-2000.0,3.6e-05,2]
[408516886,1773805756946,-2000.0,3.6e-05,2]
[408516887,1773805757799,-2000.0,3.6e-05,2]
[408516888,1773805761438,-1200.0,3.6e-05,2]
[408517058,1773805840744,-135.03454341,3.493e-05,2]
[408517070,1773805845129,-2563.37124066,3.493e-05,2]
[408517081,1773805845755,-2301.59421593,3.493e-05,2]
[408517082,1773805845763,-1200.0,3.527e-05,2]
[408517083,1773805845773,-5000.0,3.528e-05,2]
[408517084,1773805845782,-300.0,3.563e-05,2]
[408517085,1773805845791,-300.0,3.563e-05,2]
[408517086,1773805845801,-300.0,3.563e-05,2]
[408517087,1773805845810,-2886.59638285,3.564e-05,2]
[408517088,1773805845818,-7889.16497705,3.6e-05,2]
[408517089,1773805845830,-4871.70905177,3.6e-05,2]
[408517091,1773805914915,-2785.96305814,3.528e-05,2]
[408517092,1773805914938,-5000.0,3.564e-05,2]
[408517093,1773805914958,-214.03694186,3.573e-05,2]
[408517094,1773805936773,-9100.0,3.5e-05,2]
[408517096,1773805996709,-300.0,3.499e-05,2]
[408517097,1773805996730,-3600.0,3.5e-05,2]
[408517099,1773806189953,-5000.0,3.395e-05,2]
[408517100,1773806214833,-200.0,3.395e-05,2]
[408517101,1773806309563,-1963.6371124,3.327e-05,2]
[408517102,1773806309584,-436.3628876,3.361e-05,2]
[408517103,1773806309606,-2600.0,3.395e-05,2]
[408517104,1773806330098,-2200.0,3.395e-05,2]
[408517107,1773806403743,-900.0,3.464e-05,2]
[408517110,1773806808027,-4000.0,3.394e-05,2]
[408517111,1773806827955,-1000.0,3.394e-05,2]
[408517212,1773807037829,-1419.27854254,3.36e-05,2]
[408517229,1773807040109,-3580.72145746,3.36e-05,2]
[408517231,1773807040118,-744.49798742,3.394e-05,2]
[408517232,1773807040127,-1200.0,3.463e-05,2]
[408517233,1773807040136,-500.0,3.464e-05,2]
[408517234,1773807040146,-500.0,3.464e-05,2]
[408517235,1773807040155,-300.0,3.566e-05,2]
[408517236,1773807040164,-300.0,3.567e-05,2]
[408517237,1773807040173,-300.0,3.568e-05,2]
[408517238,1773807040182,-300.0,3.568e-05,2]
[408517239,1773807040191,-300.0,3.568e-05,2]
[408517240,1773807040200,-300.0,3.568e-05,2]
[408517241,1773807040209,-300.0,3.568e-05,2]
[408517242,1773807040219,-300.0,3.568e-05,2]
[408517243,1773807040228,-300.0,3.568e-05,2]
[408517244,1773807040237,-300.0,3.568e-05,2]
[408517245,1773807040246,-300.0,3.568e-05,2]
[408517246,1773807040256,-300.0,3.568e-05,2]
[408517247,1773807040265,-300.0,3.568e-05,2]
[408517248,1773807040274,-300.0,3.568e-05,2]
[408517249,1773807040284,-300.0,3.568e-05,2]
[408517250,1773807040293,-300.0,3.568e-05,2]
[408517251,1773807040302,-300.0,3.568e-05,2]
[408517252,1773807040311,-600.0,3.569e-05,2]
[408517253,1773807040320,-271.0,3.569e-05,2]
[408517254,1773807040329,-1629.76142846,3.809e-05,2]
[408517255,1773807040472,-50.23857154,3.809e-05,2]
[408517256,1773807040481,-32.56427409,3.911e-05,2]
[408517266,1773807044578,-1056.69530291,3.911e-05,2]
[408517267,1773807044588,-420.0,3.923e-05,2]
[408517268,1773807044597,-720.0,3.926e-05,2]
[408517269,1773807044606,-258.68838843,4.076e-05,2]
[408517278,1773807045851,-830.57118857,4.076e-05,2]
[408517279,1773807045861,-2351.0,4.19e-05,2]
[408517280,1773807045871,-1089.259577,4.241e-05,2]
[408517281,1773807045880,-587.0,4.315e-05,2]
[408517282,1773807045889,-864.0,4.318e-05,2]
[408517283,1773807045898,-500.02017859,4.403e-05,2]
[408517284,1773807045907,-500.0,4.403e-05,2]
[408517285,1773807045915,-500.0,4.403e-05,2]
[408517286,1773807045929,-500.41157905,4.403e-05,2]
[408517287,1773807045938,-500.67910393,4.403e-05,2]
[408517288,1773807045947,-477.44958503,4.403e-05,2]
[408517289,1773807045955,-500.0,4.403e-05,2]
[408517290,1773807045967,-500.0,4.403e-05,2]
[408517291,1773807045975,-492.03953522,4.403e-05,2]
[408517292,1773807045984,-1089.259577,4.405e-05,2]
[408517293,1773807045994,-427.86316229,4.423e-05,2]
[408517294,1773807046005,-11450.0,4.423e-05,2]
[408517295,1773807046016,-891.94322358,4.423e-05,2]
[408517296,1773807046027,-336141.43906865,4.423e-05,2]
[408517297,1773807046037,-1263.315377,4.423e-05,2]
[408517298,1773807046053,-569.37999998,4.423e-05,2]
[408517299,1773807046063,-5816.06839997,4.423e-05,2]
[408517300,1773807046074,-4132.80713712,4.423e-05,2]
[408517319,1773808106818,9047.74849417,9.2e-05,120]
[408517320,1773808224425,-823.74466461,3.12e-05,2]
[408517321,1773808224475,-2071.911887,3.152e-05,2]
[408517446,1773808237953,-823.74466461,3.152e-05,2]
[408517551,1773808243086,-2104.34344839,3.152e-05,2]
[408517552,1773808243096,-611.0,3.38e-05,2]
[408517553,1773808243106,-2569.393371,3.381e-05,2]
[408517554,1773808243115,-6740.10223484,4.099e-05,2]
[408517555,1773808243126,-5001.75398522,4.099e-05,2]
[408517592,1773808246144,-7119.95170536,4.099e-05,2]
[408517593,1773808246201,-16088.33631341,4.099e-05,2]
[408517768,1773809446281,-1017.99879645,3.22e-05,2]
[408517769,1773809446291,-4891.19042954,3.253e-05,2]
[408517770,1773809446301,-11.32138195,3.491e-05,2]
[408517779,1773810551616,-2000.0,3.286e-05,2]
[408517780,1773810552890,-1148.12344806,3.286e-05,2]
[408517781,1773810552912,-380.13834705,3.491e-05,2]
[408517782,1773810552936,-471.73820489,3.589e-05,2]
[408517783,1773810553697,-728.26179511,3.589e-05,2]
[408517784,1773810553719,-300.0,3.589e-05,2]
[408517785,1773810553738,-971.73820489,3.59e-05,2]
[408517786,1773810554649,-2000.0,3.59e-05,2]
[408517787,1773810555376,-2000.0,3.59e-05,2]
[408517788,1773810555757,-2000.0,3.59e-05,2]
[408517789,1773810556092,-2000.0,3.59e-05,2]
[408517790,1773810556407,-2000.0,3.59e-05,2]
[408517791,1773810556740,-2000.0,3.59e-05,2]
[408517792,1773810557049,-2000.0,3.59e-05,2]
[408517793,1773810557367,-2000.0,3.59e-05,2]
[408517794,1773810557869,-1150.32554348,3.59e-05,2]
[408517810,1773810632392,-250.0,3.608e-05,2]
[408517811,1773810632402,-391.459729,3.638e-05,2]
[408517812,1773810632412,-151.0,3.69e-05,2]
[408517813,1773810632422,-391.459729,3.785e-05,2]
[408517814,1773810632431,-500.0,3.823e-05,2]
[408517815,1773810632441,-500.0,3.823e-05,2]
[408517816,1773810632450,-300.0,3.847e-05,2]
[408517817,1773810632460,-3242.27100694,3.848e-05,2]
[408517843,1773810638405,-32724.48373425,3.848e-05,2]
[408517844,1773810638417,-26795.18615433,3.848e-05,2]
[408518010,1773810640887,-23212.90418406,3.848e-05,2]
[408518042,1773810643521,-4111.32773825,3.848e-05,2]
[408518043,1773810643532,-1275.38190145,3.848e-05,2]
[408518044,1773810644870,-1888.90328211,3.848e-05,2]
[408518058,1773810646441,-8507.22612196,3.848e-05,2]
[408518059,1773810646453,-8610.99485752,3.848e-05,2]
[408518062,1773810717527,2193.0,9.2e-05,120]
[408518095,1773811820705,-5000.0,2.588e-05,2]
[408518096,1773811820728,-300.0,2.666e-05,2]
[408518097,1773811820750,-1200.0,2.666e-05,2]
[408518098,1773811820771,-3500.0,2.667e-05,2]
[408518099,1773811823174,-2108.3880415,2.667e-05,2]
[408518100,1773811823196,-420.0,2.933e-05,2]
[408518101,1773811823218,-161.31399344,2.982e-05,2]
[408518102,1773811829000,-195.729864,3.184e-05,2]
[408518103,1773811829038,-587.0,3.226e-05,2]
[408518104,1773811829072,-195.729864,3.318e-05,2]
[408518105,1773811829106,-362.25854438,3.42e-05,2]
[408518106,1773811829142,-195.729864,3.452e-05,2]
[408518107,1773811829176,-123.50494346,3.548e-05,2]
[408518108,1773811829196,-195.729864,3.548e-05,2]
[408518109,1773811829209,-503.76519254,3.548e-05,2]
[408518110,1773811829220,-83.23480746,3.566e-05,2]
[408518111,1773811829239,-112.89468184,3.566e-05,2]
[408518112,1773811829250,-82.83518216,3.586e-05,2]
[408518113,1773811829273,-112.89468184,3.586e-05,2]
[408518114,1773811829284,-249.36386254,3.623e-05,2]
[408518115,1773811829298,-195.729864,3.623e-05,2]
[408518116,1773811829312,-54.90627346,3.623e-05,2]
[408518117,1773811829324,-500.0,3.623e-05,2]
[408518118,1773811829336,-268.09372654,3.648e-05,2]
[408518135,1773811832467,-371.005,3.152e-05,2]
[408518274,1773811846692,-1628.995,3.152e-05,2]
[408518275,1773811846704,-7988.13759532,3.648e-05,2]
[408518279,1773812904344,-5000.0,2.162e-05,2]
[408518280,1773812904369,-1800.0,2.184e-05,2]
[408518281,1773812904392,-300.0,2.205e-05,2]
[408518282,1773812904414,-4141.46995428,2.206e-05,2]
[408518283,1773812904452,-758.53004572,2.273e-05,2]
[408518309,1773813031629,-2785.96305814,2.25e-05,2]
[408518311,1773813031639,-209.11779386,2.514e-05,2]
[408518313,1773813031648,-250.0,3.027e-05,2]
[408518315,1773813031658,-38.1646388,3.289e-05,2]
[408518317,1773813031670,-147.28866141,3.289e-05,2]
[408518319,1773813031679,-287.15317041,3.573e-05,2]
[408518435,1773813037856,-212.84682959,3.573e-05,2]
[408518436,1773813037865,-500.0,3.573e-05,2]
[408518437,1773813037875,-491.0,3.579e-05,2]
[408518438,1773813037884,-300.0,3.579e-05,2]
[408518439,1773813037896,-5386.70296835,3.58e-05,2]
[408518440,1773813037907,-1654.1818597,3.585e-05,2]
[408518441,1773813037923,-85730.18190365,3.596e-05,2]
[408518598,1773813041913,-111.68173415,3.596e-05,2]
[408518623,1773813045872,-1541.66666667,3.596e-05,2]
[408518630,1773813794371,-195.729864,3.052e-05,2]
[408518631,1773813794393,-323.95759423,3.375e-05,2]
[408518632,1773813794414,-300.0,3.408e-05,2]
[408518633,1773813794433,-216.9855232,3.409e-05,2]
[408518634,1773813794452,-221.3473547,3.409e-05,2]
[408518635,1773813794472,-741.97966387,3.409e-05,2]
[408518636,1773813795468,-2000.0,3.409e-05,2]
[408518637,1773813795810,-2000.0,3.409e-05,2]
[408518638,1773813796154,-2000.0,3.409e-05,2]
[408518639,1773813796502,-2000.0,3.409e-05,2]
[408518640,1773813796860,-2000.0,3.409e-05,2]
[408518641,1773813797193,-2000.0,3.409e-05,2]
[408518642,1773813797512,-2000.0,3.409e-05,2]
[408518643,1773813797830,-2000.0,3.409e-05,2]
[408518644,1773813798152,-2000.0,3.409e-05,2]
[408518645,1773813798504,-432.49779303,3.409e-05,2]
[408518650,1773813894300,-3980.04400562,3.308e-05,2]
[408518651,1773813894326,-5000.0,3.341e-05,2]
[408518652,1773813894350,-19.95599438,3.374e-05,2]
[408518859,1773814240524,-459.34763194,3.178e-05,2]
[408518873,1773814240708,-74.53207228,3.178e-05,2]
[408518912,1773814246020,-2566.12029578,3.178e-05,2]
[408518913,1773814246030,-2000.0,3.21e-05,2]
[408518914,1773814246039,-276.0,3.241e-05,2]
[408518915,1773814246049,-5000.0,3.242e-05,2]
[408518916,1773814246058,-305.41156912,3.374e-05,2]
[408518917,1773814246067,-151.1958355,3.42e-05,2]
[408518918,1773814246077,-196.1416653,3.503e-05,2]
[408518919,1773814246086,-300.0,3.564e-05,2]
[408518920,1773814246096,-300.0,3.564e-05,2]
[408518921,1773814246105,-300.0,3.564e-05,2]
[408518922,1773814246114,-300.0,3.564e-05,2]
[408518923,1773814246123,-300.0,3.564e-05,2]
[408518924,1773814246133,-300.0,3.564e-05,2]
[408518925,1773814246144,-300.0,3.564e-05,2]
[408518926,1773814246153,-300.0,3.564e-05,2]
[408518927,1773814246162,-300.0,3.564e-05,2]
[408518928,1773814246171,-300.0,3.564e-05,2]
[408518929,1773814246180,-300.0,3.564e-05,2]
[408518930,1773814246189,-300.0,3.564e-05,2]
[408518931,1773814246199,-300.0,3.564e-05,2]
[408518932,1773814246209,-184.48727628,3.564e-05,2]
[408518933,1773814287468,-1000.0,3.047e-05,2]
[408518934,1773814289291,-1000.0,3.047e-05,2]
[408518935,1773814289611,-1000.0,3.047e-05,2]
[408518936,1773814289952,-1000.0,3.047e-05,2]
[408518937,1773814290287,-1000.0,3.047e-05,2]
[408518938,1773814290618,-459.34763194,3.078e-05,2]
[408518939,1773814290643,-540.65236806,3.52e-05,2]
[408518940,1773814290960,-699.98402674,3.52e-05,2]
[408518941,1773814290981,-300.01597326,3.528e-05,2]
[408518942,1773814291328,-1000.0,3.528e-05,2]
[408518943,1773814291627,-546.14472494,3.528e-05,2]
[408518944,1773814291649,-115.51272372,3.564e-05,2]
[408518945,1773814291908,-300.0,3.564e-05,2]
[408518946,1773814316652,-1000.0,3.658e-05,2]
[408518947,1773814318060,-1000.0,3.658e-05,2]
[408518948,1773814318721,-1000.0,3.658e-05,2]
[408518949,1773814318842,-1000.0,3.658e-05,2]
[408518950,1773814320398,-1000.0,3.658e-05,2]
[408518951,1773814321362,-195.729864,3.695e-05,2]
[408518952,1773814321382,-804.270136,3.696e-05,2]
[408518953,1773814321826,-1000.0,3.696e-05,2]
[408518954,1773814323336,-1000.0,3.696e-05,2]
[408518955,1773814324219,-1000.0,3.696e-05,2]
[408518956,1773814325912,-1000.0,3.696e-05,2]
[408518957,1773814328001,-1000.0,3.696e-05,2]
[408518958,1773814329401,-590.45410279,3.696e-05,2]
[408518959,1773814329422,-180.03322991,3.696e-05,2]
[408518960,1773814329443,-216.9855232,3.774e-05,2]
[408518961,1773814329464,-12.5271441,3.792e-05,2]
[408518962,1773814332687,-287.4728559,3.792e-05,2]
[408518963,1773814332708,-500.0,3.793e-05,2]
[408518964,1773814332728,-212.5271441,3.793e-05,2]
[408518965,1773814333803,-287.4728559,3.793e-05,2]
[408518966,1773814333823,-500.0,3.793e-05,2]
[408518967,1773814334116,212.5271441,3.754e-05,2]
[408518968,1773814343180,-200.0,3.754e-05,2]
[408518989,1773815424453,-196.1201887,2.744e-05,2]
[408518990,1773815424481,-985.38304508,2.97e-05,2]
[408518991,1773815424584,-365.86286165,3e-05,2]
[408519020,1773815431999,-1119.71724561,3e-05,2]
[408519023,1773815432011,-591.82014271,3e-05,2]
[408519025,1773815432020,-197.44230273,3.132e-05,2]
[408519027,1773815432030,-500.0,3.423e-05,2]
[408519029,1773815432039,-500.0,3.423e-05,2]
[408519031,1773815432048,-171.16,3.423e-05,2]
[408519033,1773815432057,-300.0,3.518e-05,2]
[408519035,1773815432066,-800.73348742,3.518e-05,2]
[408519037,1773815432078,-399.26651258,3.518e-05,2]
[408519039,1773815432088,-8948.96697031,3.519e-05,2]
[408519069,1773815438074,-106588.54670271,3.519e-05,2]
[408519070,1773815438192,-941.81791522,3.519e-05,2]
[408519071,1773815438205,-55529.07286742,3.519e-05,2]
[408519076,1773815440957,-51.2515046,3.519e-05,2]
[408519086,1773815443231,-296.904,3.519e-05,2]
[408519087,1773815443346,-1179.67946753,3.519e-05,2]
[408519089,1773815443357,-3256.23330091,3.519e-05,2]
[408519091,1773815443367,-468.942,3.519e-05,2]
[408519107,1773815446448,-276.5150003,3.519e-05,2]
[408519108,1773815446478,-46355.38751532,3.519e-05,2]
[408519518,1773816638242,-985.38304508,2.584e-05,2]
[408519519,1773816638252,-1731.775528,2.661e-05,2]
[408519521,1773816638261,-454.8347964,2.717e-05,2]
[408519522,1773816638271,-305.8871404,2.744e-05,2]
[408519524,1773816638280,-1731.775528,2.773e-05,2]
[408519526,1773816638289,-1467.34396212,2.885e-05,2]
[408519527,1773816638361,-264.43156588,2.885e-05,2]
[408519528,1773816638371,-1200.0,2.996e-05,2]
[408519529,1773816638386,-557.95142533,2.997e-05,2]
[408519530,1773816638398,-1173.82410267,2.997e-05,2]
[408519531,1773816638408,-365.86286165,3e-05,2]
[408519532,1773816638418,-1731.775528,3.109e-05,2]
[408519534,1773816638427,-1731.775528,3.222e-05,2]
[408519535,1773816638437,-1680.0,3.296e-05,2]
[408519536,1773816638446,-300.0,3.422e-05,2]
[408519537,1773816638456,-300.0,3.422e-05,2]
[408519538,1773816638465,-300.0,3.422e-05,2]
[408519540,1773816638474,-500.0,3.423e-05,2]
[408519542,1773816638485,-500.0,3.423e-05,2]
[408519544,1773816638494,-500.0,3.423e-05,2]
[408519546,1773816638504,-455.91,3.423e-05,2]
[408519547,1773816638514,-362.25854438,3.449e-05,2]
[408519548,1773816638524,-157.533,3.518e-05,2]
[408519549,1773816638533,-10769.4474713,3.521e-05,2]
[408519550,1773816638542,-1270.3246093,3.521e-05,2]
[408519551,1773816638551,-930.4772961,3.521e-05,2]
[408519552,1773816638561,-3563.8820361,3.521e-05,2]
[408519553,1773816638570,-163.8296002,3.521e-05,2]
[408519554,1773816638579,-421.0,3.626e-05,2]
[408519555,1773816638589,-339.0,3.641e-05,2]
[408519556,1773816638598,-339.0,3.641e-05,2]
[408519557,1773816638608,-164.86928159,3.641e-05,2]
[408519558,1773816638617,-166.0,3.641e-05,2]
[408519559,1773816638626,-690.0,3.641e-05,2]
[408519560,1773816638644,-166.0,3.641e-05,2]
[408519561,1773816638657,-518.98955173,3.641e-05,2]
[408519562,1773816638667,-230.36949314,3.641e-05,2]
[408519563,1773816638677,-154.78481468,3.641e-05,2]
[408519564,1773816638687,-420.0,3.764e-05,2]
[408519565,1773816638696,-1000.0,3.793e-05,2]
[408519566,1773816638706,-1000.0,3.793e-05,2]
[408519567,1773816638715,-1000.0,3.793e-05,2]
[408519568,1773816638725,-1000.0,3.793e-05,2]
[408519569,1773816638735,-983.86732993,3.793e-05,2]
[408519570,1773816638746,-151.0,3.793e-05,2]
[408519571,1773816638757,-151.0,3.793e-05,2]
[408519572,1773816638767,-151.0,3.793e-05,2]
[408519573,1773816638776,-151.0,3.793e-05,2]
[408519574,1773816638786,-151.0,3.793e-05,2]